[Event "*** Titled Tuesday Blitz"]
[Site "Chess.com"]
[Date "2020.04.21"]
[Round "4"]
[White "ENEASZ"]
[Black "Roenko_Artur"]
[Result "0-1"]
[WhiteElo "2515"]
[BlackElo "2278"]
[TimeControl "180+1"]
[EndTime "10:42:11 PDT"]
[Termination "Roenko_Artur won on time"]

1. e4 {[%clk 0:03:00.9]} 1... e6 {[%clk 0:02:58.3]} 2. d4 {[%clk 0:03:00.6]}
2... d5 {[%clk 0:02:58.7]} 3. Nc3 {[%clk 0:03:01.1]} 3... Bb4 {[%clk 0:02:56.8]}
4. e5 {[%clk 0:02:59.6]} 4... c5 {[%clk 0:02:55.7]} 5. a3 {[%clk 0:02:59.5]}
5... Bxc3+ {[%clk 0:02:55.9]} 6. bxc3 {[%clk 0:03:00.4]} 6... Ne7 {[%clk
0:02:54.9]} 7. Qg4 {[%clk 0:02:57.7]} 7... cxd4 {[%clk 0:02:54.3]} 8. cxd4
{[%clk 0:02:56.2]} 8... Qc7 {[%clk 0:02:54.4]} 9. Bd2 {[%clk 0:02:56.4]} 9...
Qxc2 {[%clk 0:02:53.2]} 10. Rc1 {[%clk 0:02:38]} 10... Qe4+ {[%clk 0:02:50.1]}
11. Qxe4 {[%clk 0:02:37.9]} 11... dxe4 {[%clk 0:02:49.2]} 12. Nh3 {[%clk
0:02:38.8]} 12... Nbc6 {[%clk 0:02:40.8]} 13. Ng5 {[%clk 0:02:38.8]} 13... Nxd4
{[%clk 0:02:30.8]} 14. Nxe4 {[%clk 0:02:38.1]} 14... O-O {[%clk 0:02:24.2]} 15.
Bb4 {[%clk 0:02:37.9]} 15... Ndc6 {[%clk 0:02:21]} 16. Bd6 {[%clk 0:02:13.8]}
16... Re8 {[%clk 0:02:16.6]} 17. Bb5 {[%clk 0:02:11.6]} 17... a6 {[%clk
0:01:51.9]} 18. Bxc6 {[%clk 0:02:07.2]} 18... Nxc6 {[%clk 0:01:51.1]} 19. O-O
{[%clk 0:02:08.1]} 19... Nd4 {[%clk 0:01:42.2]} 20. Rc4 {[%clk 0:02:03]} 20...
Nb5 {[%clk 0:01:41.7]} 21. a4 {[%clk 0:01:59.6]} 21... Na7 {[%clk 0:01:37.4]}
22. Rc7 {[%clk 0:01:55.8]} 22... Nc6 {[%clk 0:01:36]} 23. f4 {[%clk 0:01:53.6]}
23... Nd4 {[%clk 0:01:28.4]} 24. a5 {[%clk 0:01:36.8]} 24... Nb5 {[%clk
0:01:11.8]} 25. Rc5 {[%clk 0:01:36.8]} 25... Bd7 {[%clk 0:01:11.3]} 26. h3
{[%clk 0:01:29.1]} 26... Rac8 {[%clk 0:01:09.2]} 27. Rd1 {[%clk 0:01:22.8]}
27... Rxc5 {[%clk 0:01:06.5]} 28. Bxc5 {[%clk 0:01:23.7]} 28... Bc6 {[%clk
0:01:06.6]} 29. Nd6 {[%clk 0:01:23.3]} 29... Ra8 {[%clk 0:01:02.6]} 30. Nc4
{[%clk 0:01:20.3]} 30... h6 {[%clk 0:00:46.1]} 31. g4 {[%clk 0:01:13.3]} 31...
Nc3 {[%clk 0:00:42.4]} 32. Re1 {[%clk 0:00:59.7]} 32... Nd5 {[%clk 0:00:39.8]}
33. f5 {[%clk 0:01:00]} 33... Rc8 {[%clk 0:00:30]} 34. Nd6 {[%clk 0:00:58.4]}
34... Rc7 {[%clk 0:00:27]} 35. Kh2 {[%clk 0:00:51.9]} 35... Bb5 {[%clk
0:00:22.1]} 36. Rc1 {[%clk 0:00:46.1]} 36... Nf4 {[%clk 0:00:17]} 37. Be3 {[%clk
0:00:41.1]} 37... Rxc1 {[%clk 0:00:15.6]} 38. Bxc1 {[%clk 0:00:42]} 38... Nd3
{[%clk 0:00:13.3]} 39. Ba3 {[%clk 0:00:42.2]} 39... Bc6 {[%clk 0:00:12.9]} 40.
fxe6 {[%clk 0:00:35.4]} 40... fxe6 {[%clk 0:00:10.8]} 41. Nc4 {[%clk 0:00:35.9]}
41... Bd5 {[%clk 0:00:08.8]} 42. Nb6 {[%clk 0:00:32.4]} 42... Bc6 {[%clk
0:00:07.7]} 43. Kg3 {[%clk 0:00:33.1]} 43... Nxe5 {[%clk 0:00:07.1]} 44. Nc8
{[%clk 0:00:33.1]} 44... Nd7 {[%clk 0:00:06.2]} 45. Bd6 {[%clk 0:00:30.7]} 45...
Kf7 {[%clk 0:00:05.9]} 46. Kf4 {[%clk 0:00:30.6]} 46... Nf6 {[%clk 0:00:05.8]}
47. Be5 {[%clk 0:00:30.7]} 47... Nd7 {[%clk 0:00:05.8]} 48. Bc3 {[%clk
0:00:28.3]} 48... g5+ {[%clk 0:00:05.7]} 49. Ke3 {[%clk 0:00:28.2]} 49... e5
{[%clk 0:00:05.8]} 50. Kf2 {[%clk 0:00:22.7]} 50... Ke6 {[%clk 0:00:06.2]} 51.
Bd2 {[%clk 0:00:23.1]} 51... Nc5 {[%clk 0:00:06]} 52. Be3 {[%clk 0:00:20.5]}
52... Ne4+ {[%clk 0:00:05.6]} 53. Ke2 {[%clk 0:00:20.4]} 53... Nc3+ {[%clk
0:00:06]} 54. Kd3 {[%clk 0:00:20.4]} 54... Nd5 {[%clk 0:00:06.9]} 55. Bd2 {[%clk
0:00:19.7]} 55... Bb5+ {[%clk 0:00:07.1]} 56. Ke4 {[%clk 0:00:19.3]} 56... Bc6
{[%clk 0:00:07.2]} 57. Kf3 {[%clk 0:00:17.6]} 57... Nf4+ {[%clk 0:00:06.4]} 58.
Kg3 {[%clk 0:00:17.4]} 58... Ne2+ {[%clk 0:00:06.1]} 59. Kf2 {[%clk 0:00:16.7]}
59... Nd4 {[%clk 0:00:06.5]} 60. h4 {[%clk 0:00:15.1]} 60... gxh4 {[%clk
0:00:05.7]} 61. Bxh6 {[%clk 0:00:16]} 61... Nf3 {[%clk 0:00:05.3]} 62. Be3
{[%clk 0:00:09]} 62... e4 {[%clk 0:00:05]} 63. Nb6 {[%clk 0:00:06.6]} 63... Ne5
{[%clk 0:00:05.2]} 64. g5 {[%clk 0:00:04.3]} 64... Kf5 {[%clk 0:00:05.4]} 65.
Kg2 {[%clk 0:00:02.9]} 65... Ng4 {[%clk 0:00:05.1]} 66. Bd4 {[%clk 0:00:02.7]}
66... Kxg5 {[%clk 0:00:04.4]} 67. Kh3 {[%clk 0:00:02.4]} 67... Nf6 {[%clk
0:00:03.6]} 68. Nc4 {[%clk 0:00:02.5]} 68... Nh5 {[%clk 0:00:03]} 69. Be3+
{[%clk 0:00:02.3]} 69... Nf4+ {[%clk 0:00:03.9]} 70. Kh2 {[%clk 0:00:01.9]}
70... Kf5 {[%clk 0:00:04.3]} 71. Nd6+ {[%clk 0:00:02.2]} 71... Kg4 {[%clk
0:00:04.7]} 72. Nf7 {[%clk 0:00:02.4]} 72... Nd3 {[%clk 0:00:04.2]} 73. Nd6
{[%clk 0:00:01.6]} 73... Kf3 {[%clk 0:00:04.4]} 74. Bb6 {[%clk 0:00:01.2]} 74...
e3 {[%clk 0:00:04.6]} 75. Nf5 {[%clk 0:00:01.3]} 75... e2 {[%clk 0:00:04.5]} 76.
Nd4+ {[%clk 0:00:01.7]} 76... Kf2 {[%clk 0:00:04]} 77. Nxc6+ {[%clk 0:00:02.1]}
77... Kf1 {[%clk 0:00:04.3]} 78. Nd4 {[%clk 0:00:01.8]} 78... e1=Q {[%clk
0:00:02.9]} 79. Nf3 {[%clk 0:00:01.2]} 79... Qe2+ {[%clk 0:00:02.2]} 0-1

[Event "*** Titled Tuesday Blitz"]
[Site "Chess.com"]
[Date "2020.04.21"]
[Round "4"]
[White "JonahWillow"]
[Black "SahaNeelash"]
[Result "1-0"]
[WhiteElo "2759"]
[BlackElo "2530"]
[TimeControl "180+1"]
[EndTime "10:42:33 PDT"]
[Termination "JonahWillow won on time"]

1. e4 {[%clk 0:03:00.9]} 1... c6 {[%clk 0:02:59.9]} 2. d4 {[%clk 0:02:59.8]}
2... d5 {[%clk 0:03:00.4]} 3. Nc3 {[%clk 0:03:00.6]} 3... dxe4 {[%clk
0:03:00.3]} 4. Nxe4 {[%clk 0:03:01.5]} 4... Nf6 {[%clk 0:03:00.6]} 5. Nxf6+
{[%clk 0:03:01.7]} 5... exf6 {[%clk 0:03:01.5]} 6. c3 {[%clk 0:03:01.6]} 6...
Bd6 {[%clk 0:03:01.8]} 7. Bd3 {[%clk 0:03:02.4]} 7... O-O {[%clk 0:03:02.1]} 8.
Qc2 {[%clk 0:03:03.3]} 8... h6 {[%clk 0:02:58.5]} 9. Ne2 {[%clk 0:03:00.6]} 9...
Qc7 {[%clk 0:02:56.7]} 10. Be3 {[%clk 0:02:45.7]} 10... Re8 {[%clk 0:02:52.7]}
11. O-O-O {[%clk 0:02:45.3]} 11... Nd7 {[%clk 0:02:48.4]} 12. c4 {[%clk
0:02:45.4]} 12... c5 {[%clk 0:02:45.9]} 13. Kb1 {[%clk 0:01:31.9]} 13... a6
{[%clk 0:02:40.6]} 14. Rhe1 {[%clk 0:01:30.8]} 14... Nf8 {[%clk 0:02:12.9]} 15.
Nc3 {[%clk 0:01:26.1]} 15... Be6 {[%clk 0:01:54.2]} 16. Ne4 {[%clk 0:00:55.7]}
16... cxd4 {[%clk 0:01:34.8]} 17. Bxd4 {[%clk 0:00:50.5]} 17... Be5 {[%clk
0:01:32]} 18. Bxe5 {[%clk 0:00:47.4]} 18... fxe5 {[%clk 0:01:32.9]} 19. c5
{[%clk 0:00:39.8]} 19... Red8 {[%clk 0:01:25.4]} 20. Nd6 {[%clk 0:00:39]} 20...
Nd7 {[%clk 0:01:16.7]} 21. b4 {[%clk 0:00:24.4]} 21... a5 {[%clk 0:00:58.8]} 22.
Bh7+ {[%clk 0:00:24.5]} 22... Kf8 {[%clk 0:00:40]} 23. Bf5 {[%clk 0:00:21.6]}
23... axb4 {[%clk 0:00:27.9]} 24. Bxe6 {[%clk 0:00:21.4]} 24... Nxc5 {[%clk
0:00:22.2]} 25. Bxf7 {[%clk 0:00:08]} 25... Rxd6 {[%clk 0:00:21.3]} 26. Rxd6
{[%clk 0:00:07.6]} 26... Qxd6 {[%clk 0:00:22.2]} 27. Bc4 {[%clk 0:00:06.4]}
27... Na4 {[%clk 0:00:20.2]} 28. Qf5+ {[%clk 0:00:06.4]} 28... Qf6 {[%clk
0:00:20.1]} 29. Rxe5 {[%clk 0:00:05.8]} 29... Nc3+ {[%clk 0:00:19.6]} 30. Kb2
{[%clk 0:00:05.7]} 30... Re8 {[%clk 0:00:11.6]} 31. Qxf6+ {[%clk 0:00:03.6]}
31... gxf6 {[%clk 0:00:12.5]} 32. Rf5 {[%clk 0:00:03.5]} 32... Kg7 {[%clk
0:00:12.4]} 33. Rf3 {[%clk 0:00:03.7]} 33... Re4 {[%clk 0:00:11]} 34. Rg3+
{[%clk 0:00:03.8]} 34... Kf8 {[%clk 0:00:10.7]} 35. Kb3 {[%clk 0:00:04.3]} 35...
b5 {[%clk 0:00:10.2]} 36. Bd3 {[%clk 0:00:03.5]} 36... Rd4 {[%clk 0:00:09.9]}
37. a3 {[%clk 0:00:03.6]} 37... Nd5 {[%clk 0:00:09.2]} 38. axb4 {[%clk
0:00:03.3]} 38... Rxb4+ {[%clk 0:00:09.1]} 39. Kc2 {[%clk 0:00:04]} 39... Kf7
{[%clk 0:00:08.7]} 40. Rh3 {[%clk 0:00:04]} 40... Kg7 {[%clk 0:00:08.3]} 41.
Rg3+ {[%clk 0:00:04.4]} 41... Kf7 {[%clk 0:00:08.7]} 42. Rh3 {[%clk 0:00:05.3]}
42... Nf4 {[%clk 0:00:08.4]} 43. Rxh6 {[%clk 0:00:05.3]} 43... Nxg2 {[%clk
0:00:08.8]} 44. Rh7+ {[%clk 0:00:05.3]} 44... Ke6 {[%clk 0:00:09.1]} 45. Rb7
{[%clk 0:00:06.2]} 45... Rd4 {[%clk 0:00:08.7]} 46. Bxb5 {[%clk 0:00:06.4]}
46... Ne1+ {[%clk 0:00:08.7]} 47. Kc3 {[%clk 0:00:06.3]} 47... Rd6 {[%clk
0:00:08.7]} 48. Bc4+ {[%clk 0:00:06.8]} 48... Kf5 {[%clk 0:00:08.5]} 49. Rb5+
{[%clk 0:00:07.2]} 49... Kf4 {[%clk 0:00:08.3]} 50. Rb4 {[%clk 0:00:06.3]} 50...
Kg5 {[%clk 0:00:08]} 51. Rb5+ {[%clk 0:00:06.5]} 51... f5 {[%clk 0:00:07.7]} 52.
Rb1 {[%clk 0:00:07.4]} 52... Nf3 {[%clk 0:00:07.6]} 53. Rh1 {[%clk 0:00:06.9]}
53... Rh6 {[%clk 0:00:06.5]} 54. h3 {[%clk 0:00:07.5]} 54... Kf4 {[%clk
0:00:05.7]} 55. Bd5 {[%clk 0:00:07.9]} 55... Ng5 {[%clk 0:00:05.8]} 56. h4
{[%clk 0:00:07.7]} 56... Nf3 {[%clk 0:00:04.6]} 57. h5 {[%clk 0:00:08.3]} 57...
Ne5 {[%clk 0:00:03.9]} 58. Ra1 {[%clk 0:00:08.3]} 58... Rxh5 {[%clk 0:00:03.7]}
59. Ra4+ {[%clk 0:00:09.2]} 59... Kg5 {[%clk 0:00:03.1]} 60. f4+ {[%clk
0:00:09.8]} 60... Kf6 {[%clk 0:00:03.5]} 61. Ra6+ {[%clk 0:00:10.2]} 61... Ke7
{[%clk 0:00:03.5]} 62. fxe5 {[%clk 0:00:11.1]} 62... f4 {[%clk 0:00:04.2]} 63.
Kc4 {[%clk 0:00:11.4]} 63... Rxe5 {[%clk 0:00:03.4]} 64. Kd4 {[%clk 0:00:12]}
64... Re3 {[%clk 0:00:03.3]} 65. Ra7+ {[%clk 0:00:11.4]} 65... Kf6 {[%clk
0:00:03.3]} 66. Ra6+ {[%clk 0:00:12.3]} 66... Kg5 {[%clk 0:00:02.8]} 67. Ra8
{[%clk 0:00:13.2]} 67... Kf5 {[%clk 0:00:02.4]} 68. Rf8+ {[%clk 0:00:13.5]}
68... Kg5 {[%clk 0:00:02.9]} 69. Be4 {[%clk 0:00:13.8]} 69... Kg4 {[%clk
0:00:03.2]} 70. Ke5 {[%clk 0:00:13.6]} 70... f3 {[%clk 0:00:02.5]} 71. Kd4
{[%clk 0:00:14.1]} 71... Re1 {[%clk 0:00:01.7]} 72. Bxf3+ {[%clk 0:00:14.2]}
72... Kg3 {[%clk 0:00:02.1]} 73. Be4 {[%clk 0:00:15.1]} 73... Rd1+ {[%clk
0:00:01]} 74. Ke3 {[%clk 0:00:15.5]} 74... Re1+ {[%clk 0:00:01.9]} 75. Kd3
{[%clk 0:00:16]} 75... Rg1 {[%clk 0:00:02.2]} 76. Rg8+ {[%clk 0:00:16.2]} 76...
Kf2 {[%clk 0:00:03.1]} 77. Rf8+ {[%clk 0:00:17.1]} 77... Ke1 {[%clk 0:00:03.1]}
78. Bf3 {[%clk 0:00:17.6]} 78... Kf2 {[%clk 0:00:02.8]} 79. Ke4 {[%clk
0:00:17.7]} 79... Re1+ {[%clk 0:00:02.4]} 80. Kf4 {[%clk 0:00:18.2]} 80... Ra1
{[%clk 0:00:03]} 81. Be4 {[%clk 0:00:18.7]} 81... Ra4 {[%clk 0:00:03]} 82. Rg8
{[%clk 0:00:19.2]} 82... Ke2 {[%clk 0:00:03.1]} 83. Rg2+ {[%clk 0:00:19.3]}
83... Kf1 {[%clk 0:00:03.6]} 84. Rh2 {[%clk 0:00:18.9]} 84... Ra3 {[%clk
0:00:03.7]} 85. Bf3 {[%clk 0:00:18.8]} 85... Ke1 {[%clk 0:00:03.8]} 86. Rb2
{[%clk 0:00:16.1]} 86... Kf1 {[%clk 0:00:03.4]} 87. Kg3 {[%clk 0:00:16.2]} 87...
Ke1 {[%clk 0:00:03.8]} 88. Kf4 {[%clk 0:00:16.5]} 88... Ra4+ {[%clk 0:00:03.6]}
89. Be4 {[%clk 0:00:16.6]} 89... Ra3 {[%clk 0:00:03.9]} 90. Rb8 {[%clk
0:00:16.3]} 90... Rc3 {[%clk 0:00:03.6]} 91. Rd8 {[%clk 0:00:16.4]} 91... Ra3
{[%clk 0:00:03.7]} 92. Bf3 {[%clk 0:00:16.9]} 92... Ra2 {[%clk 0:00:02.8]} 93.
Kg3 {[%clk 0:00:16.6]} 93... Rd2 {[%clk 0:00:03]} 94. Re8+ {[%clk 0:00:17.1]}
94... Kf1 {[%clk 0:00:02.9]} 95. Ra8 {[%clk 0:00:18]} 1-0

[Event "*** Titled Tuesday Blitz"]
[Site "Chess.com"]
[Date "2020.04.21"]
[Round "4"]
[White "IMTominho"]
[Black "GOGIEFF"]
[Result "1/2-1/2"]
[WhiteElo "2774"]
[BlackElo "2957"]
[TimeControl "180+1"]
[EndTime "10:44:33 PDT"]
[Termination "Game drawn - insufficient material"]

1. d4 {[%clk 0:03:00.9]} 1... d5 {[%clk 0:02:58.4]} 2. c4 {[%clk 0:03:00.8]}
2... c6 {[%clk 0:02:58.8]} 3. Nf3 {[%clk 0:02:59.9]} 3... Nf6 {[%clk 0:02:59]}
4. Nc3 {[%clk 0:02:58.6]} 4... e6 {[%clk 0:02:58.5]} 5. Bg5 {[%clk 0:02:56.2]}
5... h6 {[%clk 0:02:57.8]} 6. Bxf6 {[%clk 0:02:54.6]} 6... Qxf6 {[%clk
0:02:58.7]} 7. Qc2 {[%clk 0:02:50.9]} 7... Bb4 {[%clk 0:02:43.9]} 8. e3 {[%clk
0:02:48.2]} 8... O-O {[%clk 0:02:41.8]} 9. Rc1 {[%clk 0:02:43.9]} 9... Nd7
{[%clk 0:02:41]} 10. Be2 {[%clk 0:02:43.5]} 10... b6 {[%clk 0:02:18.3]} 11. O-O
{[%clk 0:02:37.7]} 11... Bb7 {[%clk 0:02:17.6]} 12. a3 {[%clk 0:02:34.6]} 12...
Be7 {[%clk 0:02:04.7]} 13. Rfd1 {[%clk 0:02:31.1]} 13... Rfd8 {[%clk 0:01:52.9]}
14. b4 {[%clk 0:02:26.6]} 14... dxc4 {[%clk 0:01:43.6]} 15. Bxc4 {[%clk
0:02:27.5]} 15... c5 {[%clk 0:01:43.5]} 16. d5 {[%clk 0:02:21.4]} 16... cxb4
{[%clk 0:01:38.2]} 17. axb4 {[%clk 0:02:20.9]} 17... Rac8 {[%clk 0:01:29.1]} 18.
Qb3 {[%clk 0:02:14.3]} 18... Nf8 {[%clk 0:00:59]} 19. h3 {[%clk 0:02:06.6]}
19... b5 {[%clk 0:00:43.8]} 20. Nxb5 {[%clk 0:01:57.3]} 20... exd5 {[%clk
0:00:43.6]} 21. Be2 {[%clk 0:01:54.9]} 21... Qb6 {[%clk 0:00:41.7]} 22. Ra1
{[%clk 0:01:48.2]} 22... a6 {[%clk 0:00:41.4]} 23. Nbd4 {[%clk 0:01:44.7]} 23...
Bxb4 {[%clk 0:00:40]} 24. Nc2 {[%clk 0:01:33.1]} 24... a5 {[%clk 0:00:40]} 25.
Nxb4 {[%clk 0:01:28.8]} 25... axb4 {[%clk 0:00:40]} 26. Rd4 {[%clk 0:01:23.2]}
26... Bc6 {[%clk 0:00:25.4]} 27. Rxb4 {[%clk 0:01:20.8]} 27... Qc7 {[%clk
0:00:25.7]} 28. Rc1 {[%clk 0:01:15.1]} 28... Qe7 {[%clk 0:00:23.1]} 29. Qb2
{[%clk 0:01:07.6]} 29... Ne6 {[%clk 0:00:21.7]} 30. Rd1 {[%clk 0:01:01.8]} 30...
Be8 {[%clk 0:00:21.3]} 31. Nd4 {[%clk 0:00:58.3]} 31... Qf6 {[%clk 0:00:20.8]}
32. Nf3 {[%clk 0:00:54.4]} 32... Qxb2 {[%clk 0:00:19.9]} 33. Rxb2 {[%clk
0:00:55.2]} 33... Ba4 {[%clk 0:00:20.3]} 34. Ra1 {[%clk 0:00:51.5]} 34... Bc2
{[%clk 0:00:19.5]} 35. Rc1 {[%clk 0:00:46.9]} 35... Be4 {[%clk 0:00:18.8]} 36.
Rd1 {[%clk 0:00:43.4]} 36... Bxf3 {[%clk 0:00:18.4]} 37. Bxf3 {[%clk 0:00:42.3]}
37... d4 {[%clk 0:00:17.8]} 38. Rd3 {[%clk 0:00:37.2]} 38... dxe3 {[%clk
0:00:17.5]} 39. Rxe3 {[%clk 0:00:38.1]} 39... Nd4 {[%clk 0:00:17.6]} 40. Be4
{[%clk 0:00:34.2]} 40... Re8 {[%clk 0:00:16]} 41. Rd2 {[%clk 0:00:27.1]} 41...
Ne6 {[%clk 0:00:14.9]} 42. Bf5 {[%clk 0:00:25]} 42... Rcd8 {[%clk 0:00:13.9]}
43. Rxd8 {[%clk 0:00:23.7]} 43... Rxd8 {[%clk 0:00:14.8]} 44. Bxe6 {[%clk
0:00:24.2]} 44... fxe6 {[%clk 0:00:15.7]} 45. Rxe6 {[%clk 0:00:23.6]} 45... Kf7
{[%clk 0:00:16.4]} 46. Ra6 {[%clk 0:00:23.5]} 46... Rd1+ {[%clk 0:00:16.9]} 47.
Kh2 {[%clk 0:00:23.5]} 47... Rd2 {[%clk 0:00:17.8]} 48. Kg3 {[%clk 0:00:23.8]}
48... Rd3+ {[%clk 0:00:18.1]} 49. Kg4 {[%clk 0:00:24]} 49... g6 {[%clk
0:00:18.5]} 50. Rb6 {[%clk 0:00:22.9]} 50... Ra3 {[%clk 0:00:18.3]} 51. Rb2
{[%clk 0:00:20.6]} 51... Kg7 {[%clk 0:00:18.5]} 52. Re2 {[%clk 0:00:20]} 52...
Kf6 {[%clk 0:00:18.8]} 53. Re3 {[%clk 0:00:20.4]} 53... Ra2 {[%clk 0:00:18]} 54.
Kf3 {[%clk 0:00:20.5]} 54... h5 {[%clk 0:00:17.7]} 55. Rd3 {[%clk 0:00:19.2]}
55... Ra4 {[%clk 0:00:17.9]} 56. Re3 {[%clk 0:00:18.5]} 56... Rb4 {[%clk
0:00:17.9]} 57. Rc3 {[%clk 0:00:17.8]} 57... Kg7 {[%clk 0:00:18.2]} 58. Ra3
{[%clk 0:00:17.8]} 58... Kf6 {[%clk 0:00:18.4]} 59. Ra6+ {[%clk 0:00:17.6]}
59... Kg7 {[%clk 0:00:18.4]} 60. Re6 {[%clk 0:00:17.8]} 60... Ra4 {[%clk
0:00:18.2]} 61. Re4 {[%clk 0:00:17.8]} 61... Ra3+ {[%clk 0:00:18.5]} 62. Kf4
{[%clk 0:00:18.1]} 62... Ra2 {[%clk 0:00:19]} 63. Kg3 {[%clk 0:00:18.3]} 63...
Ra3+ {[%clk 0:00:19.1]} 64. Re3 {[%clk 0:00:18.5]} 64... Ra4 {[%clk 0:00:18.4]}
65. Rf3 {[%clk 0:00:19]} 65... Rb4 {[%clk 0:00:17.7]} 66. Rf4 {[%clk 0:00:17.8]}
66... Rb3+ {[%clk 0:00:17.8]} 67. Rf3 {[%clk 0:00:18.1]} 67... Rb4 {[%clk
0:00:18]} 68. Rd3 {[%clk 0:00:18]} 68... Ra4 {[%clk 0:00:18.1]} 69. Kf3 {[%clk
0:00:18.1]} 69... Rb4 {[%clk 0:00:17.6]} 70. g3 {[%clk 0:00:18.6]} 70... Ra4
{[%clk 0:00:17.8]} 71. Re3 {[%clk 0:00:17.4]} 71... Kf6 {[%clk 0:00:17.4]} 72.
Re4 {[%clk 0:00:17]} 72... Ra3+ {[%clk 0:00:17.5]} 73. Kg2 {[%clk 0:00:17.4]}
73... Ra2 {[%clk 0:00:17.7]} 74. Rf4+ {[%clk 0:00:17.6]} 74... Kg7 {[%clk
0:00:17.2]} 75. Kf3 {[%clk 0:00:17.5]} 75... Ra3+ {[%clk 0:00:17.4]} 76. Ke2
{[%clk 0:00:17.5]} 76... Ra2+ {[%clk 0:00:17.9]} 77. Kf1 {[%clk 0:00:18.1]}
77... Ra1+ {[%clk 0:00:18.3]} 78. Kg2 {[%clk 0:00:18.8]} 78... Ra2 {[%clk
0:00:19.2]} 79. Rf3 {[%clk 0:00:19.2]} 79... Ra4 {[%clk 0:00:19]} 80. Re3 {[%clk
0:00:19.4]} 80... Ra2 {[%clk 0:00:19]} 81. Kf3 {[%clk 0:00:19.5]} 81... Kf6
{[%clk 0:00:19.3]} 82. g4 {[%clk 0:00:19.6]} 82... hxg4+ {[%clk 0:00:18.3]} 83.
hxg4 {[%clk 0:00:20.5]} 83... g5 {[%clk 0:00:18.8]} 84. Rd3 {[%clk 0:00:20.1]}
84... Ra4 {[%clk 0:00:18.8]} 85. Kg3 {[%clk 0:00:20.2]} 85... Rb4 {[%clk
0:00:18.3]} 86. Rd2 {[%clk 0:00:20]} 86... Kg6 {[%clk 0:00:18.2]} 87. Rd6+
{[%clk 0:00:19.7]} 87... Kf7 {[%clk 0:00:18.2]} 88. Kf3 {[%clk 0:00:20.1]} 88...
Rf4+ {[%clk 0:00:17.6]} 89. Kg3 {[%clk 0:00:20.6]} 89... Ra4 {[%clk 0:00:18]}
90. Rd5 {[%clk 0:00:21]} 90... Kf6 {[%clk 0:00:17.6]} 91. Rf5+ {[%clk
0:00:21.2]} 91... Kg6 {[%clk 0:00:17.8]} 92. Kh3 {[%clk 0:00:20.5]} 92... Ra3+
{[%clk 0:00:17.8]} 93. f3 {[%clk 0:00:21]} 93... Ra4 {[%clk 0:00:18.2]} 94. Kg3
{[%clk 0:00:21.1]} 94... Rb4 {[%clk 0:00:18.5]} 95. Rd5 {[%clk 0:00:21]} 95...
Kf6 {[%clk 0:00:18.5]} 96. Rd6+ {[%clk 0:00:20.8]} 96... Kf7 {[%clk 0:00:18.1]}
97. Rd2 {[%clk 0:00:21.3]} 97... Rb7 {[%clk 0:00:17.2]} 98. Kf2 {[%clk
0:00:21.6]} 98... Ke6 {[%clk 0:00:17.5]} 99. Ke3 {[%clk 0:00:21.5]} 99... Re7
{[%clk 0:00:16.8]} 100. Ra2 {[%clk 0:00:19.6]} 100... Kf6+ {[%clk 0:00:16.9]}
101. Kf2 {[%clk 0:00:19.8]} 101... Re6 {[%clk 0:00:17.4]} 102. Ra5 {[%clk
0:00:19.4]} 102... Kg6 {[%clk 0:00:17.6]} 103. Rf5 {[%clk 0:00:18.8]} 103... Ra6
{[%clk 0:00:17.6]} 104. Rd5 {[%clk 0:00:18.7]} 104... Rb6 {[%clk 0:00:17.7]}
105. Ke3 {[%clk 0:00:18.3]} 105... Kf6 {[%clk 0:00:16.9]} 106. Ke4 {[%clk
0:00:16.8]} 106... Re6+ {[%clk 0:00:16.7]} 107. Kd4 {[%clk 0:00:17]} 107... Ra6
{[%clk 0:00:17.3]} 108. Ke4 {[%clk 0:00:11.1]} 108... Re6+ {[%clk 0:00:16.3]}
109. Kd3 {[%clk 0:00:11.3]} 109... Ra6 {[%clk 0:00:16.5]} 110. Ke3 {[%clk
0:00:11.6]} 110... Rb6 {[%clk 0:00:14.8]} 111. Ra5 {[%clk 0:00:10.1]} 111...
Re6+ {[%clk 0:00:13.6]} 112. Kd4 {[%clk 0:00:09.9]} 112... Rd6+ {[%clk
0:00:13.9]} 113. Rd5 {[%clk 0:00:09.5]} 113... Ra6 {[%clk 0:00:13.5]} 114. Rc5
{[%clk 0:00:09.3]} 114... Rd6+ {[%clk 0:00:12.6]} 115. Kc4 {[%clk 0:00:09.2]}
115... Ra6 {[%clk 0:00:08.4]} 116. Rf5+ {[%clk 0:00:10.1]} 116... Kg6 {[%clk
0:00:08.1]} 117. Kb5 {[%clk 0:00:11]} 117... Ra3 {[%clk 0:00:07.6]} 118. Kb4
{[%clk 0:00:11.2]} 118... Re3 {[%clk 0:00:07.8]} 119. Kc4 {[%clk 0:00:12.1]}
119... Re1 {[%clk 0:00:08]} 120. Kd4 {[%clk 0:00:12.4]} 120... Rd1+ {[%clk
0:00:08.2]} 121. Ke3 {[%clk 0:00:12.4]} 121... Re1+ {[%clk 0:00:08.7]} 122. Kf2
{[%clk 0:00:12.7]} 122... Re6 {[%clk 0:00:09.4]} 123. Rd5 {[%clk 0:00:12.8]}
123... Ra6 {[%clk 0:00:09.3]} 124. Rd4 {[%clk 0:00:13.1]} 124... Kf6 {[%clk
0:00:09.7]} 125. Ke3 {[%clk 0:00:13.3]} 125... Ke5 {[%clk 0:00:09.8]} 126. Re4+
{[%clk 0:00:13.3]} 126... Kf6 {[%clk 0:00:10.4]} 127. Rd4 {[%clk 0:00:13.5]}
127... Ra3+ {[%clk 0:00:10.4]} 128. Rd3 {[%clk 0:00:13.7]} 128... Ra6 {[%clk
0:00:10.9]} 129. Rb3 {[%clk 0:00:13]} 129... Re6+ {[%clk 0:00:11.4]} 130. Kd4
{[%clk 0:00:12.6]} 130... Ra6 {[%clk 0:00:12.3]} 131. Rb4 {[%clk 0:00:11.3]}
131... Rd6+ {[%clk 0:00:12.2]} 132. Ke4 {[%clk 0:00:09.7]} 132... Re6+ {[%clk
0:00:11.9]} 133. Kd3 {[%clk 0:00:10.1]} 133... Rd6+ {[%clk 0:00:12]} 134. Rd4
{[%clk 0:00:10.5]} 134... Ra6 {[%clk 0:00:12.4]} 135. Ke2 {[%clk 0:00:10.5]}
135... Ra2+ {[%clk 0:00:12.2]} 136. Ke3 {[%clk 0:00:10.7]} 136... Ra6 {[%clk
0:00:13.1]} 137. Ke4 {[%clk 0:00:10.4]} 137... Re6+ {[%clk 0:00:12.7]} 138. Kd5
{[%clk 0:00:10.7]} 138... Re5+ {[%clk 0:00:12.4]} 139. Kc6 {[%clk 0:00:09.5]}
139... Re3 {[%clk 0:00:12.4]} 140. Rd6+ {[%clk 0:00:09.4]} 140... Kf7 {[%clk
0:00:11]} 141. Rd5 {[%clk 0:00:08]} 141... Rxf3 {[%clk 0:00:11]} 142. Rxg5
{[%clk 0:00:08.2]} 142... Kf6 {[%clk 0:00:11.7]} 143. Rf5+ {[%clk 0:00:06.9]}
143... Rxf5 {[%clk 0:00:11]} 144. gxf5 {[%clk 0:00:07.8]} 144... Kg5 {[%clk
0:00:11.2]} 145. f6 {[%clk 0:00:06.4]} 145... Kxf6 {[%clk 0:00:11.1]} 1/2-1/2